[Event "Championnat de France Universitaire Nan"]
[Site "Nancy, France"]
[Date "2020.02.08"]
[Round "5.8"]
[White "Pak, Alexander"]
[Black "Boutillon, Nathanael"]
[Result "1-0"]
[WhiteElo "2183"]
[BlackElo "1900"]
[PlyCount "77"]
[EventDate "2020.??.??"]
[TimeControl "15+5"]
[WhiteClock "0:00:33"]
[BlackClock "0:01:45"]

1. e4 {[%emt 0:00:03]} c5 {[%emt 0:00:02]} 2. Nf3 {[%emt 0:00:02]} d6 {[%emt 0:
00:02]} 3. d4 {[%emt 0:00:02]} Nf6 {[%emt 0:00:02]} 4. Nc3 {[%emt 0:00:04]}
cxd4 {[%emt 0:00:02]} 5. Nxd4 {[%emt 0:00:02]} a6 {[%emt 0:00:01]} 6. Be2 {
[%emt 0:00:02]} e5 {[%emt 0:00:02]} 7. Nb3 {[%emt 0:00:03]} Be7 {[%emt 0:00:02]
} 8. O-O {[%emt 0:00:07]} O-O {[%emt 0:00:06]} 9. Kh1 {[%emt 0:00:02]} b5 {
[%emt 0:00:33]} 10. f4 {[%emt 0:01:17]} Bb7 {[%emt 0:01:10]} 11. Bf3 {[%emt 0:
00:26]} Nbd7 {[%emt 0:01:46]} 12. a3 {[%emt 0:00:39]} Rc8 {[%emt 0:00:26]} 13.
Be3 {[%emt 0:01:33]} Qc7 {[%emt 0:02:38]} 14. Qe1 {[%emt 0:00:31]} Nc5 {[%emt
0:00:23]} 15. Nd2 {[%emt 0:01:37]} Rfd8 {[%emt 0:02:41]} 16. Qg3 {[%emt 0:01:
13]} Ne6 {[%emt 0:00:03]} 17. f5 {[%emt 0:00:46]} Nd4 {[%emt 0:00:22]} 18. Bd1
{[%emt 0:00:22]} d5 {[%emt 0:00:29]} 19. Bh6 {[%emt 0:01:33]} Bf8 {[%emt 0:00:
19]} 20. exd5 {[%emt 0:00:23]} Nxd5 {[%emt 0:00:23]} 21. Nxd5 {[%emt 0:00:46]}
Bxd5 {[%emt 0:00:06]} 22. Bxg7 {[%emt 0:00:21]} Bxg7 {[%emt 0:00:31]} 23. f6 {
[%emt 0:00:02]} Ne6 {[%emt 0:00:23]} 24. fxg7 {[%emt 0:02:19]} Nf4 {[%emt 0:00:
02]} 25. Bf3 {[%emt 0:00:17]} Qxc2 {[%emt 0:00:05]} 26. Bxd5 {[%emt 0:00:33]}
Rxd5 {[%emt 0:00:21]} 27. Nf3 {[%emt 0:00:27]} Rcd8 {[%emt 0:00:24]} 28. Nxe5 {
[%emt 0:00:55]} Ng6 {[%emt 0:02:02]} 29. Nxf7 {[%emt 0:00:11]} R8d7 {[%emt 0:
00:13]} 30. Nh6+ {[%emt 0:00:12]} Kxg7 {[%emt 0:00:03]} 31. Qh3 {[%emt 0:00:12]
} Rd3 {[%emt 0:00:12]} 32. Nf5+ {[%emt 0:00:08]} Kg8 {[%emt 0:00:05]} 33. Qh6 {
[%emt 0:00:10]} Rd1 {[%emt 0:00:05]} 34. Raxd1 {[%emt 0:00:09]} Rxd1 {[%emt 0:
00:04]} 35. Ne7+ {[%emt 0:00:06]} Kh8 {[%emt 0:00:07]} 36. Nxg6+ {[%emt 0:00:
08]} Qxg6 {[%emt 0:00:16]} 37. Qf8+ {[%emt 0:00:02]} Qg8 {[%emt 0:00:01]} 38.
Qxg8+ {[%emt 0:00:02]} Kxg8 {[%emt 0:00:01]} 39. Rxd1 {[%emt 0:00:01]} 1-0

[Event "Championnat de France Universitaire Nan"]
[Site "Nancy, France"]
[Date "2020.02.08"]
[Round "6.1"]
[White "Msellek, Ilyass"]
[Black "Rakotomaharo, Fy Antenaina"]
[Result "1/2-1/2"]
[WhiteElo "2261"]
[BlackElo "2430"]
[PlyCount "92"]
[EventDate "2020.??.??"]
[TimeControl "15+5"]
[WhiteClock "0:00:13"]
[BlackClock "0:01:02"]

1. e4 {[%emt 0:00:00]} e5 {[%emt 0:00:02]} 2. Nf3 {[%emt 0:00:07]} Nc6 {[%emt
0:00:01]} 3. Bb5 {[%emt 0:00:00]} a6 {[%emt 0:00:02]} 4. Ba4 d6 {[%emt 0:00:01]
} 5. c3 {[%emt 0:00:29]} Bd7 {[%emt 0:00:01]} 6. O-O {[%emt 0:00:23]} g6 {
[%emt 0:00:03]} 7. d4 {[%emt 0:00:06]} Bg7 {[%emt 0:00:02]} 8. dxe5 {[%emt 0:
01:18]} dxe5 {[%emt 0:00:17]} 9. Qe2 {[%emt 0:00:10]} Qe7 {[%emt 0:00:32]} 10.
Nbd2 {[%emt 0:00:42]} Nf6 {[%emt 0:00:10]} 11. Bc2 {[%emt 0:02:34]} O-O {[%emt
0:00:31]} 12. Rd1 {[%emt 0:02:30]} Rad8 {[%emt 0:00:17]} 13. Nc4 {[%emt 0:00:
16]} h6 {[%emt 0:00:07]} 14. b3 {[%emt 0:00:17]} Rfe8 {[%emt 0:01:39]} 15. Ba3
{[%emt 0:00:15]} Qe6 {[%emt 0:00:00]} 16. Ne3 {[%emt 0:00:00]} Bc8 {[%emt 0:00:
02]} 17. Rxd8 {[%emt 0:02:13]} Rxd8 {[%emt 0:00:02]} 18. Rd1 {[%emt 0:00:03]}
Bf8 {[%emt 0:00:45]} 19. Rxd8 {[%emt 0:00:27]} Nxd8 {[%emt 0:00:01]} 20. Bxf8 {
[%emt 0:00:15]} Kxf8 {[%emt 0:00:01]} 21. Qd2 {[%emt 0:00:00]} Qd6 {[%emt 0:00:
54]} 22. Qc1 {[%emt 0:01:22]} b5 {[%emt 0:00:19]} 23. Nd5 {[%emt 0:00:38]} Ng8
{[%emt 0:00:07]} 24. b4 {[%emt 0:00:17]} c6 {[%emt 0:00:14]} 25. Ne3 {[%emt 0:
00:06]} Ne6 {[%emt 0:01:26]} 26. g3 {[%emt 0:00:02]} Ng5 {[%emt 0:00:24]} 27.
Nxg5 {[%emt 0:00:49]} hxg5 {[%emt 0:00:01]} 28. a4 {[%emt 0:00:11]} Ne7 {[%emt
0:00:14]} 29. axb5 {[%emt 0:00:26]} cxb5 {[%emt 0:00:37]} 30. Qd1 {[%emt 0:00:
45]} Qxd1+ {[%emt 0:00:15]} 31. Nxd1 {[%emt 0:00:00]} g4 {[%emt 0:00:30]} 32.
f3 {[%emt 0:00:36]} gxf3 {[%emt 0:00:16]} 33. Kf2 {[%emt 0:00:01]} f5 {[%emt 0:
00:23]} 34. Kxf3 {[%emt 0:00:04]} Kg7 {[%emt 0:00:39]} 35. Nf2 {[%emt 0:00:06]}
Kf6 {[%emt 0:00:09]} 36. g4 {[%emt 0:00:14]} Bb7 {[%emt 0:01:12]} 37. h4 {
[%emt 0:00:06]} Nc8 {[%emt 0:00:41]} 38. Ke3 {[%emt 0:00:08]} f4+ {[%emt 0:00:
43]} 39. Kf3 {[%emt 0:00:01]} Nd6 {[%emt 0:00:02]} 40. Bb3 {[%emt 0:00:06]} g5
{[%emt 0:03:11]} 41. h5 {[%emt 0:00:01]} Bc6 {[%emt 0:00:20]} 42. Bd5 {[%emt 0:
00:08]} Bb7 {[%emt 0:00:23]} 43. Bb3 {[%emt 0:00:19]} Bc6 {[%emt 0:00:02]} 44.
Bd5 {[%emt 0:00:01]} Bb7 {[%emt 0:00:02]} 45. Bb3 {[%emt 0:00:11]} Bc6 {[%emt
0:00:02]} 46. Bd5 {[%emt 0:00:07]} Bb7 1/2-1/2

[Event "Championnat de France Universitaire Nan"]
[Site "Nancy, France"]
[Date "2020.02.08"]
[Round "6.2"]
[White "Lambert, Thomas"]
[Black "Budak, Rewi"]
[Result "0-1"]
[WhiteElo "1988"]
[BlackElo "2079"]
[PlyCount "64"]
[EventDate "2020.??.??"]
[TimeControl "15+5"]
[WhiteClock "0:00:07"]
[BlackClock "0:00:33"]

1. e4 {[%emt 0:00:00]} c5 {[%emt 0:00:06]} 2. Nf3 {[%emt 0:00:02]} Nc6 {[%emt
0:00:07]} 3. d4 {[%emt 0:00:02]} cxd4 {[%emt 0:00:01]} 4. Nxd4 {[%emt 0:00:00]}
Qb6 {[%emt 0:00:00]} 5. Nb3 {[%emt 0:00:19]} e6 {[%emt 0:00:02]} 6. Be3 {[%emt
0:00:04]} Qc7 {[%emt 0:00:01]} 7. Be2 {[%emt 0:00:19]} Nf6 {[%emt 0:00:03]} 8.
N1d2 {[%emt 0:01:10]} d5 {[%emt 0:00:18]} 9. Bf3 {[%emt 0:00:20]} Bd6 {[%emt 0:
01:24]} 10. exd5 {[%emt 0:02:22]} exd5 {[%emt 0:00:29]} 11. Nf1 {[%emt 0:00:56]
} O-O {[%emt 0:01:05]} 12. Ng3 {[%emt 0:00:04]} Ne5 {[%emt 0:00:23]} 13. c3 {
[%emt 0:01:29]} Nxf3+ {[%emt 0:00:06]} 14. gxf3 {[%emt 0:00:29]} Re8 {[%emt 0:
04:54]} 15. Qd2 {[%emt 0:00:04]} a5 {[%emt 0:01:00]} 16. Nd4 {[%emt 0:00:11]}
Bf8 {[%emt 0:00:22]} 17. h4 {[%emt 0:00:35]} a4 {[%emt 0:00:29]} 18. a3 {[%emt
0:00:08]} Nd7 {[%emt 0:00:15]} 19. O-O-O {[%emt 0:01:41]} Ne5 {[%emt 0:00:35]}
20. Nb5 {[%emt 0:00:15]} Qb8 {[%emt 0:01:09]} 21. Qxd5 {[%emt 0:00:03]} Be6 {
[%emt 0:00:00]} 22. Qe4 {[%emt 0:02:16]} Bb3 {[%emt 0:00:05]} 23. Rde1 {[%emt
0:00:27]} Nc4 {[%emt 0:00:15]} 24. Qf4 {[%emt 0:00:01]} Qd8 {[%emt 0:01:15]}
25. Nd4 {[%emt 0:02:27]} b5 {[%emt 0:01:22]} 26. Nxb3 {[%emt 0:00:45]} axb3 {
[%emt 0:00:01]} 27. Rd1 {[%emt 0:00:02]} Qa5 {[%emt 0:00:04]} 28. Rd7 {[%emt 0:
00:13]} Ne5 {[%emt 0:00:32]} 29. Rd5 {[%emt 0:00:15]} Bxa3 {[%emt 0:00:20]} 30.
Rxe5 {[%emt 0:00:22]} Qxc3+ {[%emt 0:00:01]} 31. Kd1 {[%emt 0:00:07]} Rad8+ {
[%emt 0:00:28]} 32. Ke2 {[%emt 0:00:07]} Qd3+ {[%emt 0:00:01]} 0-1

[Event "Championnat de France Universitaire Nan"]
[Site "Nancy, France"]
[Date "2020.02.08"]
[Round "6.3"]
[White "Albaric, Etienne"]
[Black "Gatineau, Yovann"]
[Result "1/2-1/2"]
[WhiteElo "2258"]
[BlackElo "2381"]
[PlyCount "132"]
[EventDate "2020.??.??"]
[TimeControl "15+5"]
[WhiteClock "0:00:07"]
[BlackClock "0:00:43"]

1. e4 {[%emt 0:00:02]} c5 {[%emt 0:00:05]} 2. Nf3 {[%emt 0:00:02]} d6 3. Bb5+ {
[%emt 0:00:11]} Nd7 {[%emt 0:00:03]} 4. O-O {[%emt 0:00:05]} a6 {[%emt 0:00:02]
} 5. Bd3 {[%emt 0:00:01]} g6 {[%emt 0:00:12]} 6. a4 {[%emt 0:00:07]} Bg7 {
[%emt 0:00:05]} 7. a5 {[%emt 0:00:31]} Ngf6 {[%emt 0:00:01]} 8. c3 {[%emt 0:00:
01]} O-O {[%emt 0:00:18]} 9. Bc2 {[%emt 0:00:02]} c4 {[%emt 0:00:18]} 10. Qe2 {
[%emt 0:00:32]} Qc7 {[%emt 0:00:25]} 11. b3 {[%emt 0:00:39]} b5 {[%emt 0:01:28]
} 12. axb6 {[%emt 0:00:33]} Nxb6 {[%emt 0:00:02]} 13. bxc4 {[%emt 0:01:09]}
Nxc4 {[%emt 0:00:03]} 14. d3 {[%emt 0:01:11]} Nb6 {[%emt 0:00:03]} 15. d4 {
[%emt 0:01:32]} Bb7 {[%emt 0:00:59]} 16. Bd3 {[%emt 0:00:51]} e5 {[%emt 0:01:
51]} 17. dxe5 {[%emt 0:00:39]} dxe5 {[%emt 0:00:01]} 18. Ba3 {[%emt 0:00:31]}
Rfd8 {[%emt 0:00:35]} 19. Nfd2 {[%emt 0:01:13]} a5 {[%emt 0:01:26]} 20. Bb5 {
[%emt 0:01:10]} Bh6 {[%emt 0:01:06]} 21. c4 {[%emt 0:01:14]} Rac8 {[%emt 0:02:
54]} 22. f3 {[%emt 0:00:58]} Bf8 {[%emt 0:00:23]} 23. Bxf8 {[%emt 0:00:00]}
Kxf8 {[%emt 0:00:00]} 24. Rxa5 {[%emt 0:00:26]} Nbd5 {[%emt 0:00:07]} 25. exd5
{[%emt 0:01:50]} Qxa5 {[%emt 0:00:02]} 26. Qxe5 {[%emt 0:00:01]} Qb6+ {[%emt 0:
00:17]} 27. Kh1 {[%emt 0:00:02]} Kg7 {[%emt 0:00:16]} 28. Ne4 {[%emt 0:00:08]}
Bxd5 {[%emt 0:01:11]} 29. cxd5 {[%emt 0:00:21]} Rxd5 {[%emt 0:00:26]} 30. Qxf6+
{[%emt 0:00:16]} Qxf6 {[%emt 0:00:01]} 31. Nxf6 {[%emt 0:00:02]} Kxf6 {[%emt 0:
00:26]} 32. Ba6 {[%emt 0:00:35]} Rc2 {[%emt 0:00:21]} 33. Re1 {[%emt 0:00:08]}
Rdc5 {[%emt 0:00:35]} 34. Kg1 {[%emt 0:00:16]} Re5 {[%emt 0:00:42]} 35. Rf1 {
[%emt 0:00:07]} Rd5 {[%emt 0:00:31]} 36. Bb7 {[%emt 0:00:02]} Rb5 {[%emt 0:00:
08]} 37. Be4 {[%emt 0:00:01]} Rc7 {[%emt 0:00:13]} 38. Na3 {[%emt 0:00:08]} Rb4
{[%emt 0:00:04]} 39. Nc2 {[%emt 0:00:03]} Ra4 {[%emt 0:00:02]} 40. Ne3 {[%emt
0:00:02]} Ke5 {[%emt 0:00:08]} 41. Nd5 {[%emt 0:00:03]} Rc5 {[%emt 0:00:11]}
42. Nb6 {[%emt 0:00:05]} Ra7 {[%emt 0:00:03]} 43. Rd1 {[%emt 0:00:10]} f5 {
[%emt 0:00:04]} 44. Nd7+ {[%emt 0:00:03]} Rxd7 {[%emt 0:00:01]} 45. Rxd7 {
[%emt 0:00:01]} fxe4 {[%emt 0:00:02]} 46. Re7+ {[%emt 0:00:02]} Kf5 {[%emt 0:
00:04]} 47. Rxe4 {[%emt 0:00:23]} Rc2 {[%emt 0:00:01]} 48. Kf1 {[%emt 0:00:02]}
h5 {[%emt 0:00:02]} 49. Re2 {[%emt 0:00:01]} Rc3 {[%emt 0:00:01]} 50. Kf2 {
[%emt 0:00:00]} Ra3 {[%emt 0:00:04]} 51. Rb2 {[%emt 0:00:01]} h4 {[%emt 0:00:
11]} 52. Rb5+ {[%emt 0:00:13]} Kf6 {[%emt 0:00:05]} 53. f4 {[%emt 0:00:07]}
Ra2+ {[%emt 0:00:30]} 54. Kf3 {[%emt 0:00:01]} h3 {[%emt 0:00:11]} 55. Rb6+ {
[%emt 0:00:09]} Kf7 {[%emt 0:00:01]} 56. gxh3 {[%emt 0:00:12]} Rxh2 {[%emt 0:
00:01]} 57. Kg4 {[%emt 0:00:01]} Rh1 {[%emt 0:00:09]} 58. Rb3 {[%emt 0:00:03]}
Kf6 {[%emt 0:00:02]} 59. h4 {[%emt 0:00:03]} Rg1+ {[%emt 0:00:02]} 60. Rg3 {
[%emt 0:00:01]} Ra1 {[%emt 0:00:00]} 61. Rd3 {[%emt 0:00:06]} Rg1+ {[%emt 0:00:
02]} 62. Kf3 {[%emt 0:00:03]} Rh1 {[%emt 0:00:01]} 63. Rd6+ {[%emt 0:00:15]}
Kf5 {[%emt 0:00:02]} 64. Rd5+ {[%emt 0:00:04]} Kf6 {[%emt 0:00:01]} 65. Kg3 {
[%emt 0:00:06]} Rg1+ {[%emt 0:00:02]} 66. Kf3 {[%emt 0:00:05]} Rh1 {[%emt 0:00:
01]} 1/2-1/2

[Event "Championnat de France Universitaire Nan"]
[Site "Nancy, France"]
[Date "2020.02.08"]
[Round "6.4"]
[White "Marchais, Antoine"]
[Black "Pak, Alexander"]
[Result "0-1"]
[WhiteElo "2010"]
[BlackElo "2183"]
[PlyCount "133"]
[EventDate "2020.??.??"]
[TimeControl "15+5"]
[WhiteClock "0:03:29"]
[BlackClock "0:01:03"]

1. e4 {[%emt 0:00:02]} c5 {[%emt 0:00:01]} 2. Nc3 {[%emt 0:00:01]} d6 {[%emt 0:
00:03]} 3. g3 {[%emt 0:00:01]} g6 {[%emt 0:00:05]} 4. Bg2 {[%emt 0:00:00]} Bg7
{[%emt 0:00:01]} 5. d3 {[%emt 0:00:00]} Nc6 {[%emt 0:00:04]} 6. Be3 {[%emt 0:
00:01]} e6 {[%emt 0:00:12]} 7. Qd2 {[%emt 0:00:01]} Nge7 {[%emt 0:00:14]} 8.
Bh6 {[%emt 0:00:01]} O-O {[%emt 0:00:07]} 9. h4 {[%emt 0:00:00]} f5 {[%emt 0:
03:32]} 10. h5 {[%emt 0:00:15]} Bxh6 {[%emt 0:00:40]} 11. Qxh6 {[%emt 0:00:02]}
Qe8 {[%emt 0:00:10]} 12. Nf3 {[%emt 0:01:04]} Qf7 {[%emt 0:00:44]} 13. Ng5 {
[%emt 0:01:11]} Qg7 {[%emt 0:00:09]} 14. hxg6 {[%emt 0:00:02]} Qxh6 {[%emt 0:
01:07]} 15. gxh7+ {[%emt 0:00:06]} Kg7 {[%emt 0:00:15]} 16. Rxh6 {[%emt 0:00:
19]} Kxh6 {[%emt 0:00:02]} 17. f4 {[%emt 0:00:11]} Bd7 {[%emt 0:00:56]} 18. Kd2
{[%emt 0:00:42]} Kg7 {[%emt 0:00:07]} 19. Rh1 {[%emt 0:00:07]} Nd8 {[%emt 0:00:
53]} 20. exf5 {[%emt 0:01:02]} Nxf5 {[%emt 0:00:38]} 21. g4 {[%emt 0:00:00]}
Nd4 {[%emt 0:00:25]} 22. Nce4 {[%emt 0:01:03]} Nf7 {[%emt 0:00:36]} 23. Nxf7 {
[%emt 0:01:36]} Rxf7 {[%emt 0:00:12]} 24. c3 {[%emt 0:00:00]} Nc6 {[%emt 0:00:
16]} 25. Ke3 {[%emt 0:00:01]} d5 {[%emt 0:00:32]} 26. Ng5 {[%emt 0:01:36]} Rf6
{[%emt 0:00:10]} 27. Bf3 {[%emt 0:01:20]} Rh6 {[%emt 0:01:22]} 28. Rxh6 {[%emt
0:00:02]} Kxh6 {[%emt 0:00:01]} 29. h8=Q+ {[%emt 0:00:02]} Rxh8 {[%emt 0:00:02]
} 30. Nf7+ {[%emt 0:00:00]} Kg7 {[%emt 0:00:02]} 31. Nxh8 {[%emt 0:00:02]} Kxh8
{[%emt 0:00:01]} 32. f5 {[%emt 0:00:05]} exf5 {[%emt 0:00:00]} 33. gxf5 {[%emt
0:00:53]} Bxf5 {[%emt 0:00:00]} 34. Bxd5 {[%emt 0:00:03]} Bd7 {[%emt 0:00:00]}
35. d4 {[%emt 0:00:38]} cxd4+ {[%emt 0:00:04]} 36. cxd4 {[%emt 0:00:09]} Kg7 {
[%emt 0:00:06]} 37. a3 {[%emt 0:00:20]} Kf6 {[%emt 0:00:01]} 38. b4 {[%emt 0:
00:01]} Ke7 {[%emt 0:00:07]} 39. b5 {[%emt 0:00:05]} Nd8 {[%emt 0:00:18]} 40.
a4 {[%emt 0:00:02]} Kd6 {[%emt 0:00:09]} 41. Be4 {[%emt 0:00:06]} b6 {[%emt 0:
00:12]} 42. Kd3 {[%emt 0:00:00]} Ne6 {[%emt 0:00:04]} 43. Kc3 {[%emt 0:00:02]}
Nf4 {[%emt 0:00:04]} 44. Bf3 {[%emt 0:00:50]} Be6 {[%emt 0:00:02]} 45. Kb4 {
[%emt 0:00:10]} Nd5+ {[%emt 0:00:22]} 46. Ka3 {[%emt 0:00:02]} Ne3 {[%emt 0:00:
16]} 47. Kb4 {[%emt 0:00:11]} Bd5 {[%emt 0:00:22]} 48. Be2 {[%emt 0:00:05]} Nf5
{[%emt 0:00:10]} 49. Kc3 {[%emt 0:00:16]} Be4 {[%emt 0:00:13]} 50. Bc4 {[%emt
0:00:08]} Ne3 {[%emt 0:00:12]} 51. Bf7 {[%emt 0:00:28]} Bb7 {[%emt 0:00:15]}
52. Kb4 {[%emt 0:00:25]} Nd5+ {[%emt 0:00:07]} 53. Kc4 {[%emt 0:00:09]} Nc7 {
[%emt 0:00:05]} 54. Bg6 {[%emt 0:00:14]} Ke7 {[%emt 0:00:12]} 55. Kb4 {[%emt 0:
00:14]} Kf6 {[%emt 0:00:13]} 56. Bd3 {[%emt 0:00:03]} Kg5 {[%emt 0:00:06]} 57.
a5 {[%emt 0:00:02]} Kf4 {[%emt 0:00:11]} 58. axb6 {[%emt 0:00:38]} axb6 {[%emt
0:00:02]} 59. Bf1 {[%emt 0:00:00]} Ke3 {[%emt 0:00:05]} 60. Kc4 {[%emt 0:00:17]
} Bd5+ {[%emt 0:00:05]} 61. Kc3 {[%emt 0:00:01]} Ne6 {[%emt 0:00:18]} 62. Bh3 {
[%emt 0:00:19]} Nxd4 {[%emt 0:00:11]} 63. Bd7 {[%emt 0:00:01]} Ne6 {[%emt 0:00:
06]} 64. Kb4 {[%emt 0:00:06]} Kd4 {[%emt 0:00:06]} 65. Be8 {[%emt 0:00:07]} Nf4
{[%emt 0:00:08]} 66. Bd7 {[%emt 0:00:07]} Nd3+ {[%emt 0:00:02]} 67. Ka4 {[%emt
0:00:07]} 0-1

[Event "Championnat de France Universitaire Nan"]
[Site "Nancy, France"]
[Date "2020.02.08"]
[Round "6.5"]
[White "Nassr, Ahmed"]
[Black "Bedini, Lucas"]
[Result "0-1"]
[WhiteElo "2030"]
[BlackElo "1932"]
[PlyCount "42"]
[EventDate "2020.??.??"]
[TimeControl "15+5"]
[WhiteClock "0:06:01"]
[BlackClock "0:07:49"]

1. d4 {[%emt 0:00:00]} Nf6 {[%emt 0:00:02]} 2. Bf4 {[%emt 0:00:01]} c5 {[%emt
0:00:02]} 3. e3 {[%emt 0:00:01]} cxd4 {[%emt 0:00:03]} 4. exd4 {[%emt 0:00:01]}
Qb6 {[%emt 0:00:06]} 5. Bc1 {[%emt 0:00:19]} Nc6 {[%emt 0:00:19]} 6. c3 {[%emt
0:00:01]} d5 {[%emt 0:00:04]} 7. Bd3 {[%emt 0:00:10]} Bg4 {[%emt 0:00:29]} 8.
Ne2 {[%emt 0:01:54]} O-O-O {[%emt 0:01:24]} 9. h3 {[%emt 0:01:40]} Bh5 {[%emt
0:00:00]} 10. Qb3 {[%emt 0:00:21]} Qc7 {[%emt 0:01:30]} 11. Be3 {[%emt 0:01:01]
} Bg6 {[%emt 0:00:36]} 12. Bxg6 {[%emt 0:00:08]} hxg6 {[%emt 0:00:03]} 13. Na3
{[%emt 0:00:58]} a6 {[%emt 0:02:22]} 14. O-O-O {[%emt 0:00:16]} e6 {[%emt 0:00:
27]} 15. Bf4 {[%emt 0:01:01]} Bd6 {[%emt 0:00:04]} 16. Bxd6 {[%emt 0:00:03]}
Qxd6 {[%emt 0:00:12]} 17. Nc2 {[%emt 0:00:38]} Ne4 {[%emt 0:00:33]} 18. f3 {
[%emt 0:01:20]} Nf2 {[%emt 0:00:09]} 19. Ne3 {[%emt 0:00:26]} Nxh1 {[%emt 0:00:
19]} 20. Rxh1 {[%emt 0:00:02]} e5 {[%emt 0:00:21]} 21. dxe5 {[%emt 0:00:17]}
Qxe5 {[%emt 0:00:03]} 0-1

[Event "Championnat de France Universitaire Nan"]
[Site "Nancy, France"]
[Date "2020.02.08"]
[Round "6.6"]
[White "Buttard, Axel"]
[Black "Rey, Gaetan"]
[Result "1-0"]
[WhiteElo "1905"]
[BlackElo "1824"]
[PlyCount "57"]
[EventDate "2020.??.??"]
[TimeControl "15+5"]
[WhiteClock "0:00:09"]
[BlackClock "0:01:07"]

1. d4 {[%emt 0:00:02]} Nf6 {[%emt 0:00:01]} 2. Bf4 {[%emt 0:00:04]} c5 {[%emt
0:00:08]} 3. e3 {[%emt 0:00:10]} g6 {[%emt 0:01:14]} 4. Nf3 {[%emt 0:00:42]}
Bg7 {[%emt 0:00:03]} 5. c3 {[%emt 0:00:59]} cxd4 {[%emt 0:01:13]} 6. exd4 {
[%emt 0:00:04]} O-O {[%emt 0:01:38]} 7. Bd3 {[%emt 0:00:29]} Nc6 {[%emt 0:00:
15]} 8. O-O {[%emt 0:00:20]} d5 {[%emt 0:01:00]} 9. Re1 {[%emt 0:00:35]} a6 {
[%emt 0:01:04]} 10. a4 {[%emt 0:00:58]} Nh5 {[%emt 0:01:40]} 11. Bg5 {[%emt 0:
01:00]} f6 {[%emt 0:00:38]} 12. Bh4 {[%emt 0:01:00]} Qd6 {[%emt 0:00:29]} 13.
Nbd2 {[%emt 0:03:48]} Kh8 {[%emt 0:01:13]} 14. Bg3 {[%emt 0:02:27]} Nxg3 {
[%emt 0:00:05]} 15. hxg3 {[%emt 0:00:01]} e5 {[%emt 0:00:30]} 16. dxe5 {[%emt
0:00:22]} fxe5 {[%emt 0:00:05]} 17. Bc2 {[%emt 0:00:37]} Bg4 {[%emt 0:00:36]}
18. Qb1 {[%emt 0:02:27]} Rae8 {[%emt 0:01:16]} 19. Nh2 {[%emt 0:00:03]} Bc8 {
[%emt 0:00:13]} 20. Qd1 {[%emt 0:00:11]} Qc5 {[%emt 0:00:45]} 21. Qe2 {[%emt 0:
00:06]} Qb6 {[%emt 0:00:37]} 22. Rab1 {[%emt 0:00:04]} e4 {[%emt 0:00:21]} 23.
Nhf1 {[%emt 0:00:17]} Ne5 {[%emt 0:00:25]} 24. Nb3 {[%emt 0:00:06]} Bg4 {[%emt
0:00:07]} 25. Qd2 {[%emt 0:00:03]} Nc4 {[%emt 0:00:15]} 26. Qxd5 {[%emt 0:00:
05]} Qxf2+ {[%emt 0:00:04]} 27. Kh1 {[%emt 0:00:03]} Nb6 {[%emt 0:00:26]} 28.
Qd2 {[%emt 0:00:05]} Qxg3 {[%emt 0:00:07]} 29. Nxg3 {[%emt 0:00:04]} 1-0

[Event "Championnat de France Universitaire Nan"]
[Site "Nancy, France"]
[Date "2020.02.08"]
[Round "6.7"]
[White "Daeschler, Florian"]
[Black "Kajganic, Fabien"]
[Result "1-0"]
[WhiteElo "2327"]
[BlackElo "1908"]
[PlyCount "68"]
[EventDate "2020.??.??"]
[TimeControl "15+5"]
[WhiteClock "0:01:36"]
[BlackClock "0:00:17"]

1. d4 {[%emt 0:00:01]} Nf6 {[%emt 0:00:03]} 2. c4 {[%emt 0:00:02]} e6 {[%emt 0:
00:01]} 3. g3 {[%emt 0:00:02]} d5 {[%emt 0:00:15]} 4. Nf3 {[%emt 0:00:02]} dxc4
{[%emt 0:00:03]} 5. Bg2 {[%emt 0:00:00]} a6 {[%emt 0:00:11]} 6. O-O {[%emt 0:
00:03]} Nc6 {[%emt 0:00:06]} 7. e3 {[%emt 0:00:02]} Rb8 {[%emt 0:00:15]} 8. Qe2
{[%emt 0:00:02]} b5 {[%emt 0:00:32]} 9. b3 {[%emt 0:00:00]} cxb3 {[%emt 0:00:
32]} 10. axb3 {[%emt 0:00:01]} Be7 {[%emt 0:00:22]} 11. Bb2 {[%emt 0:00:22]}
Bb7 {[%emt 0:00:21]} 12. Rc1 {[%emt 0:00:02]} O-O {[%emt 0:00:10]} 13. Ne5 {
[%emt 0:01:13]} Nxe5 {[%emt 0:00:55]} 14. Bxb7 {[%emt 0:00:02]} Rxb7 {[%emt 0:
00:11]} 15. dxe5 {[%emt 0:00:01]} Ne4 {[%emt 0:01:37]} 16. Qf3 {[%emt 0:01:15]}
Qd5 {[%emt 0:00:53]} 17. Rxa6 {[%emt 0:04:51]} Nc5 {[%emt 0:01:19]} 18. Qxd5 {
[%emt 0:00:03]} exd5 {[%emt 0:00:02]} 19. Rc6 {[%emt 0:00:26]} Nxb3 {[%emt 0:
03:03]} 20. Rxc7 {[%emt 0:00:07]} Rxc7 {[%emt 0:00:24]} 21. Rxc7 {[%emt 0:00:
03]} Bg5 {[%emt 0:02:21]} 22. Rb7 {[%emt 0:00:20]} Rc8 {[%emt 0:01:06]} 23.
Rxb5 {[%emt 0:00:22]} Nc5 {[%emt 0:00:16]} 24. Nc3 {[%emt 0:00:43]} Nd3 {[%emt
0:01:05]} 25. Nxd5 {[%emt 0:00:13]} h6 {[%emt 0:00:11]} 26. Bc3 {[%emt 0:01:12]
} Nc1 {[%emt 0:00:51]} 27. Kg2 {[%emt 0:00:07]} Ne2 {[%emt 0:00:02]} 28. Bd4 {
[%emt 0:00:21]} Rc4 {[%emt 0:00:10]} 29. Bb2 {[%emt 0:01:42]} Kh7 {[%emt 0:00:
12]} 30. Rb7 {[%emt 0:01:08]} Rc2 {[%emt 0:00:06]} 31. e6 {[%emt 0:00:19]} fxe6
{[%emt 0:00:09]} 32. Rxg7+ {[%emt 0:00:13]} Kh8 {[%emt 0:00:00]} 33. Rb7+ {
[%emt 0:00:06]} Kg8 {[%emt 0:00:03]} 34. Nf6+ {[%emt 0:00:37]} Bxf6 {[%emt 0:
00:18]} 1-0